[Event "*** SCC Grand Prix: Titled Tuesday Blitz"]
[Site "Chess.com"]
[Date "2020.10.13"]
[Round "1"]
[White "mamonika"]
[Black "sergeikim"]
[Result "0-1"]
[WhiteElo "1971"]
[BlackElo "2507"]
[TimeControl "180+1"]
[EndTime "10:07:40 PDT"]
[Termination "sergeikim won on time"]

1. e4 {[%clk 0:03:00.3]} 1... e5 {[%clk 0:02:59.7]} 2. Nf3 {[%clk 0:02:58.2]}
2... Nc6 {[%clk 0:02:59.8]} 3. Bc4 {[%clk 0:02:57.7]} 3... Bc5 {[%clk
0:02:58.8]} 4. b4 {[%clk 0:02:57.5]} 4... Bxb4 {[%clk 0:02:58.3]} 5. c3 {[%clk
0:02:57.3]} 5... Ba5 {[%clk 0:02:58.8]} 6. d4 {[%clk 0:02:57]} 6... d6 {[%clk
0:02:58.5]} 7. Qb3 {[%clk 0:02:55.9]} 7... Qd7 {[%clk 0:02:58.1]} 8. dxe5 {[%clk
0:02:50.3]} 8... dxe5 {[%clk 0:02:57.3]} 9. O-O {[%clk 0:02:44.9]} 9... Bb6
{[%clk 0:02:57]} 10. Rd1 {[%clk 0:02:22.5]} 10... Qe7 {[%clk 0:02:56.7]} 11. Ba3
{[%clk 0:02:14]} 11... Qf6 {[%clk 0:02:56.5]} 12. Kh1 {[%clk 0:01:17.9]} 12...
Nge7 {[%clk 0:02:53.9]} 13. Nbd2 {[%clk 0:01:14.2]} 13... O-O {[%clk 0:02:52.2]}
14. Qc2 {[%clk 0:01:01.6]} 14... Bg4 {[%clk 0:02:46.7]} 15. Be2 {[%clk
0:00:56.8]} 15... Rfe8 {[%clk 0:02:42.5]} 16. Nc4 {[%clk 0:00:55.2]} 16... Ng6
{[%clk 0:02:41.8]} 17. Ne3 {[%clk 0:00:49.2]} 17... Bxe3 {[%clk 0:02:32.6]} 18.
fxe3 {[%clk 0:00:47.6]} 18... Nh4 {[%clk 0:02:21.4]} 19. Rf1 {[%clk 0:00:39.1]}
19... Nxf3 {[%clk 0:02:16.8]} 20. Bxf3 {[%clk 0:00:38.1]} 20... Bxf3 {[%clk
0:02:16.2]} 21. Rxf3 {[%clk 0:00:37.9]} 21... Qe6 {[%clk 0:02:15.8]} 22. Raf1
{[%clk 0:00:36.8]} 22... f6 {[%clk 0:02:15.3]} 23. Qf2 {[%clk 0:00:29.2]} 23...
Qf7 {[%clk 0:02:07.9]} 24. Qh4 {[%clk 0:00:23.8]} 24... Qg6 {[%clk 0:02:07.1]}
25. Rg3 {[%clk 0:00:21.4]} 25... Qf7 {[%clk 0:02:00]} 26. h3 {[%clk 0:00:16.7]}
26... Kh8 {[%clk 0:01:58]} 27. Rf5 {[%clk 0:00:15]} 27... Re6 {[%clk 0:01:45.9]}
28. Rh5 {[%clk 0:00:14.8]} 28... g6 {[%clk 0:01:45.8]} 29. Rh6 {[%clk
0:00:14.4]} 29... Rg8 {[%clk 0:01:42.9]} 30. c4 {[%clk 0:00:11.7]} 30... Nd8
{[%clk 0:01:38]} 31. Qg4 {[%clk 0:00:11.4]} 31... Ra6 {[%clk 0:01:35.4]} 32. Bc5
{[%clk 0:00:07.4]} 32... Ne6 {[%clk 0:01:34.1]} 33. Bb4 {[%clk 0:00:06.4]} 33...
c5 {[%clk 0:01:33.3]} 34. Bc3 {[%clk 0:00:05.9]} 34... Ra3 {[%clk 0:01:31.7]}
35. Bb2 {[%clk 0:00:04.9]} 35... Rxa2 {[%clk 0:01:31]} 36. Bc3 {[%clk
0:00:05.1]} 36... Rc2 {[%clk 0:01:30]} 37. Be1 {[%clk 0:00:03.8]} 37... Rc1
{[%clk 0:01:28.7]} 38. Qe2 {[%clk 0:00:03.8]} 38... Ng5 {[%clk 0:01:20.2]} 39.
Kh2 {[%clk 0:00:03.5]} 39... Nxe4 {[%clk 0:01:19.5]} 40. Rf3 {[%clk 0:00:03.5]}
40... Ng5 {[%clk 0:01:18.5]} 41. Rg3 {[%clk 0:00:02.5]} 41... e4 {[%clk
0:01:17.6]} 42. Rxg5 {[%clk 0:00:02.6]} 42... fxg5 {[%clk 0:01:17]} 43. Qd2
{[%clk 0:00:02.7]} 43... Rxc4 {[%clk 0:01:14.5]} 44. Qb2+ {[%clk 0:00:02.4]}
44... Qg7 {[%clk 0:01:13.7]} 45. Qb3 {[%clk 0:00:01.7]} 45... Rc1 {[%clk
0:01:08.8]} 46. Bd2 {[%clk 0:00:01.3]} 46... Qxh6 {[%clk 0:01:06.8]} 47. Bxc1
{[%clk 0:00:01.2]} 47... Qf8 {[%clk 0:00:52.3]} 48. Bb2+ {[%clk 0:00:02.1]}
48... Rg7 {[%clk 0:00:52.8]} 49. Qxb7 {[%clk 0:00:01.8]} 49... h6 {[%clk
0:00:52.7]} 50. Qxa7 {[%clk 0:00:01.5]} 50... Kh7 {[%clk 0:00:52.9]} 51. Bxg7
{[%clk 0:00:01.4]} 51... Qxg7 {[%clk 0:00:53.1]} 52. Qxc5 {[%clk 0:00:01.5]}
52... Qf7 {[%clk 0:00:51.5]} 53. Kg3 {[%clk 0:00:01.4]} 53... Qe8 {[%clk
0:00:47.4]} 54. Qd5 {[%clk 0:00:01.2]} 54... Qe7 {[%clk 0:00:46.6]} 0-1

[Event "*** SCC Grand Prix: Titled Tuesday Blitz"]
[Site "Chess.com"]
[Date "2020.10.13"]
[Round "1"]
[White "SergeyKarjakin"]
[Black "venus02"]
[Result "1-0"]
[WhiteElo "2899"]
[BlackElo "2459"]
[TimeControl "180+1"]
[EndTime "10:07:41 PDT"]
[Termination "SergeyKarjakin won on time"]

1. d4 {[%clk 0:03:00.2]} 1... Nf6 {[%clk 0:02:59.2]} 2. Bg5 {[%clk 0:02:56.6]}
2... e6 {[%clk 0:02:57.5]} 3. Nf3 {[%clk 0:02:54.4]} 3... b6 {[%clk 0:02:56.2]}
4. e3 {[%clk 0:02:52]} 4... Bb7 {[%clk 0:02:56.1]} 5. Nbd2 {[%clk 0:02:52.6]}
5... h6 {[%clk 0:02:54.1]} 6. Bh4 {[%clk 0:02:50.6]} 6... d6 {[%clk 0:02:52.3]}
7. a4 {[%clk 0:02:39.5]} 7... a5 {[%clk 0:02:51.3]} 8. Bd3 {[%clk 0:02:25.2]}
8... Nbd7 {[%clk 0:02:50.1]} 9. c3 {[%clk 0:02:24.3]} 9... g6 {[%clk 0:02:31.8]}
10. Qc2 {[%clk 0:02:15.1]} 10... Bg7 {[%clk 0:02:31.3]} 11. Be4 {[%clk
0:02:07.9]} 11... Bxe4 {[%clk 0:02:26.3]} 12. Nxe4 {[%clk 0:02:08.8]} 12... d5
{[%clk 0:02:24.5]} 13. Nxf6+ {[%clk 0:02:05.5]} 13... Bxf6 {[%clk 0:02:24.7]}
14. Bg3 {[%clk 0:02:03.6]} 14... Rc8 {[%clk 0:02:22.3]} 15. e4 {[%clk
0:01:57.8]} 15... O-O {[%clk 0:02:17.6]} 16. O-O {[%clk 0:01:54.1]} 16... c5
{[%clk 0:02:15.2]} 17. exd5 {[%clk 0:01:45.3]} 17... exd5 {[%clk 0:02:14.2]} 18.
Qb3 {[%clk 0:01:45.7]} 18... cxd4 {[%clk 0:02:00.4]} 19. Nxd4 {[%clk 0:01:31.3]}
19... Bxd4 {[%clk 0:01:57.9]} 20. cxd4 {[%clk 0:01:32.2]} 20... Rc4 {[%clk
0:01:57.2]} 21. Qd3 {[%clk 0:01:29]} 21... Qc8 {[%clk 0:01:51.2]} 22. b3 {[%clk
0:01:22.4]} 22... Rc3 {[%clk 0:01:50.4]} 23. Qd2 {[%clk 0:01:22.8]} 23... Nf6
{[%clk 0:01:20]} 24. Qxh6 {[%clk 0:01:07]} 24... Rxb3 {[%clk 0:01:12.4]} 25. Be5
{[%clk 0:01:06.1]} 25... Qf5 {[%clk 0:01:04.6]} 26. Rac1 {[%clk 0:01:00.4]}
26... Qh5 {[%clk 0:00:51.9]} 27. Qf4 {[%clk 0:00:53.5]} 27... Ng4 {[%clk
0:00:48.4]} 28. Bd6 {[%clk 0:00:53]} 28... Re8 {[%clk 0:00:38.8]} 29. Rc7 {[%clk
0:00:53.4]} 29... Nh6 {[%clk 0:00:35]} 30. Be5 {[%clk 0:00:50.5]} 30... Rf8
{[%clk 0:00:08]} 31. Rfc1 {[%clk 0:00:35.1]} 31... Ng4 {[%clk 0:00:07.3]} 32.
Bd6 {[%clk 0:00:32]} 32... g5 {[%clk 0:00:07.5]} 33. Qf5 {[%clk 0:00:29.6]}
33... Nh6 {[%clk 0:00:06.3]} 34. Qxd5 {[%clk 0:00:26.7]} 34... Rd3 {[%clk
0:00:06.1]} 35. h3 {[%clk 0:00:18.6]} 35... Re8 {[%clk 0:00:06.1]} 36. Be5
{[%clk 0:00:15.6]} 36... Qg6 {[%clk 0:00:04]} 37. Rc8 {[%clk 0:00:14]} 37...
Rd1+ {[%clk 0:00:01.7]} 38. Kh2 {[%clk 0:00:13.2]} 38... Ng4+ {[%clk 0:00:01.8]}
39. Kg3 {[%clk 0:00:11.6]} 1-0

[Event "*** SCC Grand Prix: Titled Tuesday Blitz"]
[Site "Chess.com"]
[Date "2020.10.13"]
[Round "1"]
[White "GM_Levan_Pantsulaia"]
[Black "ASVZ"]
[Result "0-1"]
[WhiteElo "2801"]
[BlackElo "2433"]
[TimeControl "180+1"]
[EndTime "10:07:41 PDT"]
[Termination "ASVZ won by resignation"]

1. Nf3 {[%clk 0:03:00.9]} 1... b6 {[%clk 0:02:59.8]} 2. g3 {[%clk 0:03:00.3]}
2... Bb7 {[%clk 0:03:00.7]} 3. Bg2 {[%clk 0:03:00.9]} 3... e6 {[%clk 0:03:01.3]}
4. Kf1 {[%clk 0:02:59.8]} 4... f5 {[%clk 0:03:01.3]} 5. Kg1 {[%clk 0:03:00.7]}
5... Nf6 {[%clk 0:03:01.7]} 6. d3 {[%clk 0:02:58.7]} 6... g6 {[%clk 0:03:02.1]}
7. Nbd2 {[%clk 0:02:57.9]} 7... Bg7 {[%clk 0:03:02.5]} 8. c4 {[%clk 0:02:48.7]}
8... O-O {[%clk 0:03:01.5]} 9. Qc2 {[%clk 0:02:39.3]} 9... a5 {[%clk 0:02:59.6]}
10. b3 {[%clk 0:02:39]} 10... Na6 {[%clk 0:02:57.1]} 11. a3 {[%clk 0:02:37.7]}
11... Nc5 {[%clk 0:02:51.2]} 12. Bb2 {[%clk 0:02:37.7]} 12... d6 {[%clk
0:02:51.7]} 13. h4 {[%clk 0:02:32.5]} 13... e5 {[%clk 0:02:50.5]} 14. b4 {[%clk
0:02:21.9]} 14... axb4 {[%clk 0:02:49.9]} 15. axb4 {[%clk 0:02:22.8]} 15...
Rxa1+ {[%clk 0:02:49.6]} 16. Bxa1 {[%clk 0:02:23.4]} 16... Qa8 {[%clk
0:02:48.4]} 17. Bb2 {[%clk 0:02:04.8]} 17... Ne6 {[%clk 0:02:42.5]} 18. Qb3
{[%clk 0:01:56.3]} 18... c5 {[%clk 0:02:29.6]} 19. Ne1 {[%clk 0:01:49.5]} 19...
Bh6 {[%clk 0:01:41.2]} 20. Nf1 {[%clk 0:01:40.4]} 20... Nd4 {[%clk 0:01:35.9]}
21. Bxd4 {[%clk 0:01:39.2]} 21... cxd4 {[%clk 0:01:36.8]} 22. Bxb7 {[%clk
0:01:27.9]} 22... Qxb7 {[%clk 0:01:36.7]} 23. Nf3 {[%clk 0:01:28.8]} 23... Kg7
{[%clk 0:01:32.4]} 24. Kg2 {[%clk 0:01:26.3]} 24... Ng4 {[%clk 0:01:29.7]} 25.
Nh2 {[%clk 0:01:18.6]} 25... e4 {[%clk 0:01:15.5]} 26. Nxd4 {[%clk 0:01:13.5]}
26... exd3+ {[%clk 0:01:12.5]} 27. Nhf3 {[%clk 0:01:13.9]} 27... Ne5 {[%clk
0:00:53.5]} 28. Ne6+ {[%clk 0:01:09.9]} 28... Kf7 {[%clk 0:00:53.9]} 29. Nxf8
{[%clk 0:01:09.1]} 29... Kxf8 {[%clk 0:00:54.8]} 30. Re1 {[%clk 0:01:03.2]}
30... Bd2 {[%clk 0:00:46.9]} 31. Qd1 {[%clk 0:00:19.9]} 31... Bxe1 {[%clk
0:00:45.9]} 32. Qxe1 {[%clk 0:00:20.8]} 32... Qe4 {[%clk 0:00:41.2]} 33. c5
{[%clk 0:00:20.1]} 33... bxc5 {[%clk 0:00:34]} 34. bxc5 {[%clk 0:00:19.5]} 34...
dxe2 {[%clk 0:00:32.2]} 35. cxd6 {[%clk 0:00:17.3]} 35... Nxf3 {[%clk
0:00:30.2]} 36. Qa1 {[%clk 0:00:15.7]} 36... Nxh4+ {[%clk 0:00:18.9]} 37. Kh3
{[%clk 0:00:15.8]} 37... Qg4+ {[%clk 0:00:07.8]} 38. Kh2 {[%clk 0:00:15.7]}
38... Nf3+ {[%clk 0:00:07.8]} 39. Kg2 {[%clk 0:00:16.2]} 39... e1=Q {[%clk
0:00:06.7]} 40. Qf6+ {[%clk 0:00:14.9]} 40... Kg8 {[%clk 0:00:06.4]} 41. Qd8+
{[%clk 0:00:14.6]} 41... Kg7 {[%clk 0:00:06.8]} 42. Qe7+ {[%clk 0:00:14.4]}
42... Qxe7 {[%clk 0:00:06.4]} 43. dxe7 {[%clk 0:00:15.3]} 43... Nh4+ {[%clk
0:00:06.7]} 44. Kh2 {[%clk 0:00:15.3]} 44... Qe4 {[%clk 0:00:06.7]} 45. gxh4
{[%clk 0:00:14.8]} 45... Qxe7 {[%clk 0:00:06.9]} 0-1

[Event "*** SCC Grand Prix: Titled Tuesday Blitz"]
[Site "Chess.com"]
[Date "2020.10.13"]
[Round "1"]
[White "SARGISMV"]
[Black "LyonBeast"]
[Result "0-1"]
[WhiteElo "2492"]
[BlackElo "3027"]
[TimeControl "180+1"]
[EndTime "10:07:43 PDT"]
[Termination "LyonBeast won on time"]

1. d4 {[%clk 0:02:57.6]} 1... d5 {[%clk 0:02:59.2]} 2. c4 {[%clk 0:02:57.1]}
2... e6 {[%clk 0:02:58.4]} 3. Nf3 {[%clk 0:02:56.7]} 3... Nf6 {[%clk 0:02:58]}
4. Nc3 {[%clk 0:02:53.5]} 4... c6 {[%clk 0:02:58.1]} 5. e3 {[%clk 0:02:51.4]}
5... Nbd7 {[%clk 0:02:57.2]} 6. Bd3 {[%clk 0:02:51.4]} 6... dxc4 {[%clk
0:02:56.7]} 7. Bxc4 {[%clk 0:02:52.3]} 7... b5 {[%clk 0:02:54.8]} 8. Bd3 {[%clk
0:02:52.4]} 8... a6 {[%clk 0:02:53]} 9. e4 {[%clk 0:02:48.6]} 9... c5 {[%clk
0:02:53]} 10. e5 {[%clk 0:02:47.3]} 10... cxd4 {[%clk 0:02:52.9]} 11. Nxb5
{[%clk 0:02:34.9]} 11... axb5 {[%clk 0:02:46]} 12. exf6 {[%clk 0:02:34.4]} 12...
gxf6 {[%clk 0:02:45.7]} 13. Nxd4 {[%clk 0:02:27]} 13... Bb7 {[%clk 0:02:40.1]}
14. O-O {[%clk 0:01:55.2]} 14... Rg8 {[%clk 0:02:37.8]} 15. f3 {[%clk 0:01:42]}
15... Bc5 {[%clk 0:02:32.8]} 16. Be3 {[%clk 0:01:41.3]} 16... Qb6 {[%clk
0:02:13.7]} 17. Bxb5 {[%clk 0:01:08.1]} 17... Rd8 {[%clk 0:02:13.3]} 18. Qd3
{[%clk 0:00:46.4]} 18... Kf8 {[%clk 0:01:56.3]} 19. Rad1 {[%clk 0:00:29]} 19...
Bd5 {[%clk 0:01:52.2]} 20. Bxd7 {[%clk 0:00:22.6]} 20... Rxd7 {[%clk 0:01:51.6]}
21. Qxh7 {[%clk 0:00:21.9]} 21... Rd8 {[%clk 0:01:44.2]} 22. Bf2 {[%clk
0:00:18.9]} 22... Rc8 {[%clk 0:01:16.2]} 23. Qh6+ {[%clk 0:00:17.4]} 23... Ke8
{[%clk 0:01:12.8]} 24. Kh1 {[%clk 0:00:17.5]} 24... Qxb2 {[%clk 0:01:09]} 25.
Qxf6 {[%clk 0:00:16.7]} 25... Be7 {[%clk 0:01:03.4]} 26. Qf4 {[%clk 0:00:12.5]}
26... Qxa2 {[%clk 0:00:57.5]} 27. Bg3 {[%clk 0:00:10.3]} 27... Qa6 {[%clk
0:00:50.9]} 28. Rfe1 {[%clk 0:00:10.2]} 28... Rc4 {[%clk 0:00:47.2]} 29. Qe5
{[%clk 0:00:07.3]} 29... Rg5 {[%clk 0:00:39.2]} 30. Qh8+ {[%clk 0:00:05.3]}
30... Kd7 {[%clk 0:00:39.5]} 31. Ne2 {[%clk 0:00:03.4]} 31... Rc8 {[%clk
0:00:32.1]} 32. Qd4 {[%clk 0:00:02.4]} 32... Ke8 {[%clk 0:00:20]} 33. Nf4 {[%clk
0:00:02.4]} 33... Qc4 {[%clk 0:00:17]} 34. Qh8+ {[%clk 0:00:02.4]} 34... Kd7
{[%clk 0:00:16.4]} 35. Qa1 {[%clk 0:00:03.1]} 35... Rxg3 {[%clk 0:00:13.5]} 36.
hxg3 {[%clk 0:00:02.8]} 36... Rh8+ {[%clk 0:00:13]} 37. Nh3 {[%clk 0:00:01.9]}
37... Rh7 {[%clk 0:00:11.4]} 38. Qd4 {[%clk 0:00:01.8]} 38... Qc6 {[%clk
0:00:08.4]} 39. Kh2 {[%clk 0:00:02.2]} 39... Bd6 {[%clk 0:00:08.6]} 40. Qa7+
{[%clk 0:00:02]} 40... Bc7 {[%clk 0:00:08.4]} 41. Qd4 {[%clk 0:00:02.4]} 41...
Kc8 {[%clk 0:00:08.2]} 42. Qg4 {[%clk 0:00:02.2]} 42... Qd6 {[%clk 0:00:08.3]}
0-1

[Event "*** SCC Grand Prix: Titled Tuesday Blitz"]
[Site "Chess.com"]
[Date "2020.10.13"]
[Round "1"]
[White "Sankalp_Gupta2003"]
[Black "MFBerna"]
[Result "1-0"]
[WhiteElo "2741"]
[BlackElo "2385"]
[TimeControl "180+1"]
[EndTime "10:07:44 PDT"]
[Termination "Sankalp_Gupta2003 won on time"]

1. e4 {[%clk 0:03:00.9]} 1... c5 {[%clk 0:02:59.2]} 2. Nf3 {[%clk 0:03:01.3]}
2... Nc6 {[%clk 0:02:59.2]} 3. Nc3 {[%clk 0:03:00.6]} 3... e6 {[%clk 0:02:59.1]}
4. d4 {[%clk 0:03:00.2]} 4... cxd4 {[%clk 0:03:00]} 5. Nxd4 {[%clk 0:03:01.1]}
5... Qc7 {[%clk 0:03:00.9]} 6. Be3 {[%clk 0:03:01.3]} 6... a6 {[%clk 0:03:01.2]}
7. Qf3 {[%clk 0:03:01]} 7... Nf6 {[%clk 0:02:55.7]} 8. Qg3 {[%clk 0:03:00.8]}
8... Qxg3 {[%clk 0:02:53.8]} 9. hxg3 {[%clk 0:03:01.7]} 9... Bb4 {[%clk
0:02:53.3]} 10. f3 {[%clk 0:02:58.4]} 10... b5 {[%clk 0:02:52.9]} 11. Nxc6
{[%clk 0:02:55.8]} 11... dxc6 {[%clk 0:02:52.8]} 12. O-O-O {[%clk 0:02:56.7]}
12... e5 {[%clk 0:02:48]} 13. Nb1 {[%clk 0:02:44.8]} 13... Be6 {[%clk
0:02:44.6]} 14. a3 {[%clk 0:02:44.2]} 14... Be7 {[%clk 0:02:43.3]} 15. Nd2
{[%clk 0:02:42.9]} 15... O-O-O {[%clk 0:02:32.1]} 16. Be2 {[%clk 0:02:42]} 16...
Kc7 {[%clk 0:02:27.7]} 17. Nb3 {[%clk 0:02:41]} 17... Bxb3 {[%clk 0:02:27.4]}
18. cxb3 {[%clk 0:02:41.9]} 18... c5 {[%clk 0:02:17.4]} 19. g4 {[%clk
0:02:26.9]} 19... Kc6 {[%clk 0:02:17.5]} 20. Rxd8 {[%clk 0:02:17.3]} 20... Bxd8
{[%clk 0:02:12.8]} 21. g5 {[%clk 0:02:13.2]} 21... Nd7 {[%clk 0:02:06]} 22. g3
{[%clk 0:02:10.3]} 22... Nf8 {[%clk 0:02:03.7]} 23. f4 {[%clk 0:02:08.8]} 23...
Ne6 {[%clk 0:01:49.9]} 24. Bh5 {[%clk 0:01:51]} 24... Rf8 {[%clk 0:01:37.8]} 25.
Bg4 {[%clk 0:01:50.9]} 25... Rh8 {[%clk 0:01:18.9]} 26. g6 {[%clk 0:01:51.1]}
26... Nd4 {[%clk 0:01:00.9]} 27. Rxh7 {[%clk 0:01:42.2]} 27... Rf8 {[%clk
0:01:01.1]} 28. Rxg7 {[%clk 0:01:28.2]} 28... fxg6 {[%clk 0:01:01.2]} 29. Rxg6+
{[%clk 0:01:29.1]} 29... Kb7 {[%clk 0:01:01.4]} 30. Bd1 {[%clk 0:01:21.4]} 30...
Bc7 {[%clk 0:00:59.7]} 31. f5 {[%clk 0:01:20.9]} 31... Rh8 {[%clk 0:01:00.2]}
32. g4 {[%clk 0:01:12.8]} 32... Rh1 {[%clk 0:01:00.3]} 33. Rh6 {[%clk
0:01:00.2]} 33... Nxb3+ {[%clk 0:00:51.1]} 34. Kc2 {[%clk 0:00:50.8]} 34... Nd4+
{[%clk 0:00:49.2]} 35. Kd2 {[%clk 0:00:50.9]} 35... Ba5+ {[%clk 0:00:49]} 36. b4
{[%clk 0:00:42.9]} 36... Rxh6 {[%clk 0:00:47.5]} 37. Bxh6 {[%clk 0:00:43.8]}
37... cxb4 {[%clk 0:00:47.8]} 38. axb4 {[%clk 0:00:44.6]} 38... Bxb4+ {[%clk
0:00:48.7]} 39. Kd3 {[%clk 0:00:45.1]} 39... a5 {[%clk 0:00:48.1]} 40. g5 {[%clk
0:00:38.7]} 40... a4 {[%clk 0:00:48.3]} 41. g6 {[%clk 0:00:37.4]} 41... a3
{[%clk 0:00:48.6]} 42. Bc1 {[%clk 0:00:30.6]} 42... a2 {[%clk 0:00:32.4]} 43.
Bb2 {[%clk 0:00:29.3]} 43... Bf8 {[%clk 0:00:28.8]} 44. f6 {[%clk 0:00:23.3]}
44... Ne6 {[%clk 0:00:26.6]} 45. Kc2 {[%clk 0:00:22.2]} 45... Nd4+ {[%clk
0:00:17.2]} 46. Bxd4 {[%clk 0:00:21]} 46... exd4 {[%clk 0:00:18.1]} 47. Kb2
{[%clk 0:00:21.4]} 47... Kc6 {[%clk 0:00:05]} 48. g7 {[%clk 0:00:21.4]} 48...
Bxg7 {[%clk 0:00:01.4]} 49. fxg7 {[%clk 0:00:22.3]} 1-0

[Event "*** SCC Grand Prix: Titled Tuesday Blitz"]
[Site "Chess.com"]
[Date "2020.10.13"]
[Round "1"]
[White "BocharovD"]
[Black "TokChess"]
[Result "1-0"]
[WhiteElo "2799"]
[BlackElo "2406"]
[TimeControl "180+1"]
[EndTime "10:07:45 PDT"]
[Termination "BocharovD won by resignation"]

1. d4 {[%clk 0:03:00.4]} 1... Nf6 {[%clk 0:02:54.1]} 2. c4 {[%clk 0:02:59.9]}
2... g6 {[%clk 0:02:53.5]} 3. g3 {[%clk 0:02:59.8]} 3... Bg7 {[%clk 0:02:53.2]}
4. Bg2 {[%clk 0:03:00.4]} 4... d5 {[%clk 0:02:53.5]} 5. cxd5 {[%clk 0:02:59.9]}
5... Nxd5 {[%clk 0:02:53.8]} 6. Nf3 {[%clk 0:03:00.8]} 6... O-O {[%clk
0:02:53.6]} 7. O-O {[%clk 0:03:01.4]} 7... Nc6 {[%clk 0:02:54]} 8. Nc3 {[%clk
0:03:02]} 8... Nb6 {[%clk 0:02:54]} 9. d5 {[%clk 0:03:01.9]} 9... Na5 {[%clk
0:02:53.2]} 10. Qc2 {[%clk 0:03:02.1]} 10... c6 {[%clk 0:02:44.7]} 11. dxc6
{[%clk 0:03:03]} 11... Nxc6 {[%clk 0:02:44.7]} 12. Rd1 {[%clk 0:03:02.4]} 12...
Bd7 {[%clk 0:02:42.1]} 13. Be3 {[%clk 0:02:56.3]} 13... Rc8 {[%clk 0:02:31.1]}
14. Rac1 {[%clk 0:02:35.7]} 14... Qe8 {[%clk 0:01:40.3]} 15. Qe4 {[%clk
0:02:28.3]} 15... Bf5 {[%clk 0:01:34.8]} 16. Qh4 {[%clk 0:02:27.7]} 16... Rd8
{[%clk 0:01:17.7]} 17. Bh6 {[%clk 0:02:21.1]} 17... Rxd1+ {[%clk 0:01:16.9]} 18.
Rxd1 {[%clk 0:02:20.5]} 18... f6 {[%clk 0:01:11.1]} 19. Bxg7 {[%clk 0:02:18.9]}
19... Kxg7 {[%clk 0:01:11.2]} 20. Nd4 {[%clk 0:02:08.2]} 20... Nxd4 {[%clk
0:01:05.8]} 21. Qxd4 {[%clk 0:02:07.9]} 21... Qc8 {[%clk 0:01:01]} 22. Nb5
{[%clk 0:02:01.3]} 22... Qc4 {[%clk 0:00:47.4]} 23. Qxc4 {[%clk 0:01:59.9]}
23... Nxc4 {[%clk 0:00:47.8]} 24. b3 {[%clk 0:01:59.9]} 24... Ne5 {[%clk
0:00:35]} 25. f4 {[%clk 0:01:41.3]} 25... Nc6 {[%clk 0:00:32.9]} 26. Kf2 {[%clk
0:01:04.9]} 26... a6 {[%clk 0:00:29.5]} 27. Bxc6 {[%clk 0:01:03]} 27... bxc6
{[%clk 0:00:27.7]} 28. Nd4 {[%clk 0:01:03.6]} 28... Bd7 {[%clk 0:00:23.6]} 29.
Rc1 {[%clk 0:01:01.9]} 29... Rc8 {[%clk 0:00:22.5]} 30. Rc5 {[%clk 0:01:00.5]}
30... Kf7 {[%clk 0:00:23]} 31. e4 {[%clk 0:00:59.6]} 31... e5 {[%clk 0:00:17.5]}
32. fxe5 {[%clk 0:00:59.1]} 32... fxe5 {[%clk 0:00:18.1]} 33. Nf3 {[%clk
0:00:57.6]} 33... Ke6 {[%clk 0:00:14.6]} 34. Nxe5 {[%clk 0:00:57.5]} 34... Kd6
{[%clk 0:00:14.9]} 35. Nxd7 {[%clk 0:00:52.6]} 35... Kxd7 {[%clk 0:00:15.4]} 36.
Ke3 {[%clk 0:00:52.2]} 36... Kd6 {[%clk 0:00:15.5]} 37. Ra5 {[%clk 0:00:51.4]}
37... Ra8 {[%clk 0:00:13]} 38. b4 {[%clk 0:00:51.5]} 38... Kc7 {[%clk 0:00:13]}
39. a3 {[%clk 0:00:50.1]} 39... Kb6 {[%clk 0:00:13.5]} 40. Re5 {[%clk
0:00:49.6]} 40... Ra7 {[%clk 0:00:12.3]} 41. Re8 {[%clk 0:00:45.9]} 41... a5
{[%clk 0:00:11.2]} 42. Kd4 {[%clk 0:00:35.2]} 42... axb4 {[%clk 0:00:11.2]} 43.
axb4 {[%clk 0:00:35.1]} 43... Ra2 {[%clk 0:00:10.5]} 44. h4 {[%clk 0:00:31.3]}
44... Rg2 {[%clk 0:00:10.3]} 45. Re7 {[%clk 0:00:28.6]} 45... h5 {[%clk
0:00:10.3]} 46. e5 {[%clk 0:00:28.6]} 46... Rxg3 {[%clk 0:00:10.5]} 47. e6
{[%clk 0:00:28.8]} 47... Rg4+ {[%clk 0:00:10.8]} 48. Ke5 {[%clk 0:00:28.2]}
48... Rxb4 {[%clk 0:00:10.7]} 49. Rd7 {[%clk 0:00:24.3]} 49... Rxh4 {[%clk
0:00:09.2]} 50. e7 {[%clk 0:00:24.4]} 50... Rh1 {[%clk 0:00:09.2]} 51. Rd4
{[%clk 0:00:24.4]} 1-0